[Event "Live Chess"]
[Site "Chess.com"]
[Date "2023.05.21"]
[Round "-"]
[White "Swetha_Queen"]
[Black "Ian-Morley"]
[Result "0-1"]
[WhiteElo "348"]
[BlackElo "1052"]
[TimeControl "300"]
[EndTime "4:14:23 PDT"]
[Termination "Ian-Morley won on time"]

1. e4 {[%clk 0:04:58.2]} 1... e5 {[%clk 0:04:59.3]} 2. Nf3 {[%clk 0:04:55.9]}
2... f5 {[%clk 0:04:58.6]} 3. Nxe5 {[%clk 0:04:53.8]} 3... Nf6 {[%clk
0:04:55.4]} 4. exf5 {[%clk 0:04:50.9]} 4... Qe7 {[%clk 0:04:53.7]} 5. Qe2 {[%clk
0:04:41.4]} 5... d6 {[%clk 0:04:52.3]} 6. Nd3 {[%clk 0:04:30.2]} 6... Qxe2+
{[%clk 0:04:50.8]} 7. Bxe2 {[%clk 0:04:27.6]} 7... Bxf5 {[%clk 0:04:48.2]} 8.
Nf4 {[%clk 0:04:21.5]} 8... Bxc2 {[%clk 0:04:45.5]} 9. Nc3 {[%clk 0:04:14.4]}
9... Bf5 {[%clk 0:04:41]} 10. Ne6 {[%clk 0:04:09.9]} 10... Bxe6 {[%clk
0:04:37.7]} 11. Bb5+ {[%clk 0:04:06.7]} 11... c6 {[%clk 0:04:36.5]} 12. Ba4
{[%clk 0:04:02]} 12... b5 {[%clk 0:04:35.4]} 13. Bb3 {[%clk 0:03:58.9]} 13...
Bxb3 {[%clk 0:04:34.3]} 14. axb3 {[%clk 0:03:56.7]} 14... a5 {[%clk 0:04:32.7]}
15. Ne2 {[%clk 0:03:50]} 15... Be7 {[%clk 0:04:31.3]} 16. Nf4 {[%clk 0:03:45.8]}
16... Nbd7 {[%clk 0:04:29.7]} 17. Ne6 {[%clk 0:03:42.3]} 17... Kf7 {[%clk
0:04:26.4]} 18. Ng5+ {[%clk 0:03:35.5]} 18... Kg6 {[%clk 0:04:24.2]} 19. Nf3
{[%clk 0:03:24.7]} 19... Rae8 {[%clk 0:04:22.3]} 20. Nh4+ {[%clk 0:03:21.1]}
20... Kh6 {[%clk 0:04:20.5]} 21. Nf5+ {[%clk 0:03:17.4]} 21... Kg6 {[%clk
0:04:17.7]} 22. Nh4+ {[%clk 0:03:15.7]} 22... Kf7 {[%clk 0:04:14.9]} 23. Nf5
{[%clk 0:03:08.9]} 23... g6 {[%clk 0:04:13.2]} 24. Nd4 {[%clk 0:03:02.3]} 24...
c5 {[%clk 0:04:11.8]} 25. Nxb5 {[%clk 0:03:00]} 25... Nb6 {[%clk 0:04:08.4]} 26.
Nc7 {[%clk 0:02:54]} 26... Bd8+ {[%clk 0:04:07]} 27. Nxe8 {[%clk 0:02:46.5]}
27... Rxe8+ {[%clk 0:04:05.5]} 28. Kf1 {[%clk 0:02:40.6]} 28... Ne4 {[%clk
0:04:04.4]} 29. d3 {[%clk 0:02:34.8]} 29... Ng5 {[%clk 0:03:58.9]} 30. Bf4
{[%clk 0:02:26.3]} 30... d5 {[%clk 0:03:53.6]} 31. Rxa5 {[%clk 0:02:14.9]} 31...
c4 {[%clk 0:03:51.5]} 32. bxc4 {[%clk 0:02:11.9]} 32... dxc4 {[%clk 0:03:50.5]}
33. Ra7+ {[%clk 0:01:54.3]} 33... Kf6 {[%clk 0:03:45.2]} 34. Be3 {[%clk
0:01:43.9]} 34... cxd3 {[%clk 0:03:42.9]} 35. Ra4 {[%clk 0:01:20.9]} 35... Nd5
{[%clk 0:03:31.2]} 36. Ra6+ {[%clk 0:01:15.4]} 36... Ne6 {[%clk 0:03:28.1]} 37.
Ra3 {[%clk 0:00:56.1]} 37... Nxe3+ {[%clk 0:03:26.6]} 38. fxe3 {[%clk 0:00:54]}
38... d2 {[%clk 0:03:25.3]} 39. Rd3 {[%clk 0:00:44.9]} 39... Nc5 {[%clk
0:03:13.2]} 40. Rxd2 {[%clk 0:00:41.1]} 40... Rxe3 {[%clk 0:03:12.1]} 41. Rxd8
{[%clk 0:00:34.6]} 41... Rb3 {[%clk 0:03:08.2]} 42. Kf2 {[%clk 0:00:28.5]} 42...
Rxb2+ {[%clk 0:03:06.8]} 43. Ke3 {[%clk 0:00:24.5]} 43... Rb3+ {[%clk
0:03:03.1]} 44. Kd4 {[%clk 0:00:18.9]} 44... Ne6+ {[%clk 0:03:02]} 45. Kd5
{[%clk 0:00:15.1]} 45... Nxd8 {[%clk 0:02:59.4]} 46. Kd6 {[%clk 0:00:13.7]}
46... Rd3+ {[%clk 0:02:57.8]} 47. Kc7 {[%clk 0:00:12.1]} 47... Ne6+ {[%clk
0:02:57]} 48. Kc6 {[%clk 0:00:10.3]} 48... Rd2 {[%clk 0:02:55.6]} 49. Kb5 {[%clk
0:00:08.8]} 49... Rxg2 {[%clk 0:02:54.4]} 50. Rf1+ {[%clk 0:00:05.8]} 50... Kg5
{[%clk 0:02:52.9]} 51. Rh1 {[%clk 0:00:01.9]} 51... Nf4 {[%clk 0:02:51.6]} 52.
Rf1 {[%clk 0:00:00.6]} 52... Rxh2 {[%clk 0:02:48.8]} 0-1

[Event "Live Chess"]
[Site "Chess.com"]
[Date "2023.05.21"]
[Round "-"]
[White "TheSmoulderingMaster"]
[Black "smoggyrabbit"]
[Result "1-0"]
[WhiteElo "1652"]
[BlackElo "1690"]
[TimeControl "300"]
[EndTime "4:14:37 PDT"]
[Termination "TheSmoulderingMaster won by checkmate"]

1. e4 {[%clk 0:04:58.5]} 1... e6 {[%clk 0:04:58.9]} 2. d4 {[%clk 0:04:56.9]}
2... d5 {[%clk 0:04:58]} 3. Nc3 {[%clk 0:04:56.2]} 3... Nf6 {[%clk 0:04:56.4]}
4. Bg5 {[%clk 0:04:54.3]} 4... Be7 {[%clk 0:04:54.4]} 5. e5 {[%clk 0:04:53.6]}
5... Nfd7 {[%clk 0:04:53.7]} 6. Bxe7 {[%clk 0:04:53.2]} 6... Qxe7 {[%clk
0:04:53.5]} 7. f4 {[%clk 0:04:52.5]} 7... a6 {[%clk 0:04:45.7]} 8. Nf3 {[%clk
0:04:50.2]} 8... Nb6 {[%clk 0:04:44.4]} 9. Bd3 {[%clk 0:04:47.9]} 9... c5 {[%clk
0:04:38.2]} 10. dxc5 {[%clk 0:04:43.7]} 10... Qxc5 {[%clk 0:04:36.3]} 11. Qe2
{[%clk 0:04:36]} 11... Nc6 {[%clk 0:04:32.8]} 12. O-O-O {[%clk 0:04:34.4]} 12...
Bd7 {[%clk 0:03:59.5]} 13. g4 {[%clk 0:04:24.4]} 13... Rc8 {[%clk 0:03:17.7]}
14. f5 {[%clk 0:04:21.3]} 14... Nd4 {[%clk 0:03:10.8]} 15. Nxd4 {[%clk
0:04:18.5]} 15... Qxd4 {[%clk 0:03:09.9]} 16. fxe6 {[%clk 0:04:15.6]} 16... Qf4+
{[%clk 0:02:53.1]} 17. Kb1 {[%clk 0:04:13.4]} 17... fxe6 {[%clk 0:02:45.5]} 18.
Rhf1 {[%clk 0:04:06.6]} 18... Qb4 {[%clk 0:02:36.2]} 19. Qd2 {[%clk 0:03:44.1]}
19... Nc4 {[%clk 0:02:01.8]} 20. Bxc4 {[%clk 0:03:41.8]} 20... Rxc4 {[%clk
0:02:00.8]} 21. Qd3 {[%clk 0:03:24.6]} 21... Rc8 {[%clk 0:01:38.1]} 22. Nxd5
{[%clk 0:03:17.2]} 22... exd5 {[%clk 0:01:32.7]} 23. Qxd5 {[%clk 0:03:16.3]}
23... Qb5 {[%clk 0:00:54.6]} 24. Qf7+ {[%clk 0:03:12.5]} 24... Kd8 {[%clk
0:00:52]} 25. e6 {[%clk 0:03:06.3]} 25... Rc7 {[%clk 0:00:33.2]} 26. e7+ {[%clk
0:03:02.9]} 26... Kc8 {[%clk 0:00:28.1]} 27. Qf8+ {[%clk 0:02:59.7]} 27... Be8
{[%clk 0:00:17.5]} 28. Rd8# {[%clk 0:02:58.2]} 1-0

[Event "Live Chess"]
[Site "Chess.com"]
[Date "2023.05.21"]
[Round "-"]
[White "Nazar_777"]
[Black "DoYouLikeCurry"]
[Result "0-1"]
[WhiteElo "1568"]
[BlackElo "1414"]
[TimeControl "300"]
[EndTime "4:14:44 PDT"]
[Termination "DoYouLikeCurry won by checkmate"]

1. e3 {[%clk 0:04:49.8]} 1... c6 {[%clk 0:04:57.4]} 2. h4 {[%clk 0:04:36.6]}
2... d5 {[%clk 0:04:52.4]} 3. a3 {[%clk 0:04:35.5]} 3... e5 {[%clk 0:04:50]} 4.
Nf3 {[%clk 0:04:33.8]} 4... Qc7 {[%clk 0:04:41.9]} 5. c4 {[%clk 0:04:32.4]} 5...
Bg4 {[%clk 0:04:39.9]} 6. cxd5 {[%clk 0:04:30.6]} 6... cxd5 {[%clk 0:04:38]} 7.
Nc3 {[%clk 0:04:29.2]} 7... Bxf3 {[%clk 0:04:34.7]} 8. gxf3 {[%clk 0:04:27.8]}
8... Nf6 {[%clk 0:04:34.2]} 9. Bb5+ {[%clk 0:04:23.6]} 9... Nc6 {[%clk
0:04:32.3]} 10. Be2 {[%clk 0:04:19.4]} 10... Bd6 {[%clk 0:04:26.4]} 11. Qc2
{[%clk 0:04:18.3]} 11... O-O {[%clk 0:04:23.4]} 12. b4 {[%clk 0:04:17]} 12... a6
{[%clk 0:04:20.4]} 13. Bb2 {[%clk 0:04:15.8]} 13... Rac8 {[%clk 0:04:14]} 14.
Rc1 {[%clk 0:04:14.4]} 14... d4 {[%clk 0:04:00.9]} 15. Ne4 {[%clk 0:04:12.2]}
15... Nxe4 {[%clk 0:03:51.4]} 16. Qxe4 {[%clk 0:04:09]} 16... dxe3 {[%clk
0:03:47.5]} 17. dxe3 {[%clk 0:04:07.9]} 17... Qe7 {[%clk 0:03:38.6]} 18. Rg1
{[%clk 0:04:00.3]} 18... f5 {[%clk 0:03:13.5]} 19. Bc4+ {[%clk 0:03:17.4]} 19...
Kh8 {[%clk 0:02:48.4]} 20. Qc2 {[%clk 0:03:13.1]} 20... Rc7 {[%clk 0:02:41]} 21.
f4 {[%clk 0:03:11.6]} 21... Qxh4 {[%clk 0:02:34]} 22. Be2 {[%clk 0:03:01.7]}
22... exf4 {[%clk 0:02:28.3]} 23. Bxg7+ {[%clk 0:02:57.5]} 23... Rxg7 {[%clk
0:02:23.2]} 24. Qc3 {[%clk 0:02:55]} 24... Be5 {[%clk 0:02:18.1]} 25. Qc2 {[%clk
0:02:42.3]} 25... Rxg1+ {[%clk 0:02:14.7]} 26. Kd2 {[%clk 0:02:41.1]} 26... Rxc1
{[%clk 0:02:12.7]} 27. Kxc1 {[%clk 0:02:39.6]} 27... Qxf2 {[%clk 0:02:09.1]} 28.
Bd3 {[%clk 0:02:35.2]} 28... Qxc2+ {[%clk 0:02:06.1]} 29. Kxc2 {[%clk
0:02:34.3]} 29... fxe3 {[%clk 0:02:01.2]} 30. b5 {[%clk 0:02:32.4]} 30... axb5
{[%clk 0:01:59.1]} 31. Bxb5 {[%clk 0:02:31.2]} 31... Nd4+ {[%clk 0:01:58.6]} 32.
Kd3 {[%clk 0:02:25.8]} 32... Nxb5 {[%clk 0:01:58.5]} 33. a4 {[%clk 0:02:24.3]}
33... e2 {[%clk 0:01:55.1]} 34. Kxe2 {[%clk 0:02:22.5]} 34... Nc3+ {[%clk
0:01:53.6]} 35. Kf3 {[%clk 0:02:21]} 35... Nxa4 {[%clk 0:01:53.5]} 36. Kg2
{[%clk 0:02:19.3]} 36... Rc8 {[%clk 0:01:50.9]} 37. Kf3 {[%clk 0:02:18.7]} 37...
b5 {[%clk 0:01:50.4]} 38. Ke2 {[%clk 0:02:17.7]} 38... b4 {[%clk 0:01:49.8]} 39.
Kf3 {[%clk 0:02:16.7]} 39... b3 {[%clk 0:01:49.2]} 40. Kg2 {[%clk 0:02:16.1]}
40... b2 {[%clk 0:01:48.6]} 41. Kh3 {[%clk 0:02:15.5]} 41... b1=Q {[%clk
0:01:47.9]} 42. Kh4 {[%clk 0:02:14.9]} 42... Qe4+ {[%clk 0:01:44.9]} 43. Kg5
{[%clk 0:02:13.6]} 43... Rg8+ {[%clk 0:01:43.7]} 44. Kh6 {[%clk 0:02:11.7]}
44... Qh4# {[%clk 0:01:42.3]} 0-1

[Event "Live Chess"]
[Site "Chess.com"]
[Date "2023.05.21"]
[Round "-"]
[White "Tiltador"]
[Black "LiamClery2020"]
[Result "0-1"]
[WhiteElo "837"]
[BlackElo "2010"]
[TimeControl "300"]
[EndTime "4:15:04 PDT"]
[Termination "LiamClery2020 won by checkmate"]

1. e4 {[%clk 0:04:56.6]} 1... Nf6 {[%clk 0:04:59.9]} 2. d3 {[%clk 0:04:53.4]}
2... e5 {[%clk 0:04:58.7]} 3. Nf3 {[%clk 0:04:51.9]} 3... Nc6 {[%clk 0:04:57.7]}
4. Be2 {[%clk 0:04:49.6]} 4... d5 {[%clk 0:04:56.7]} 5. O-O {[%clk 0:04:47.8]}
5... dxe4 {[%clk 0:04:55.8]} 6. dxe4 {[%clk 0:04:46.2]} 6... Qxd1 {[%clk
0:04:55.7]} 7. Rxd1 {[%clk 0:04:44.6]} 7... Nxe4 {[%clk 0:04:55.6]} 8. Nc3
{[%clk 0:04:39.2]} 8... Nxc3 {[%clk 0:04:54.6]} 9. bxc3 {[%clk 0:04:37.3]} 9...
Bd6 {[%clk 0:04:53.5]} 10. Bb5 {[%clk 0:04:33.9]} 10... Bd7 {[%clk 0:04:52.7]}
11. Bxc6 {[%clk 0:04:30.4]} 11... Bxc6 {[%clk 0:04:52.6]} 12. Be3 {[%clk
0:04:27.3]} 12... O-O {[%clk 0:04:50.9]} 13. Rd3 {[%clk 0:04:10.1]} 13... e4
{[%clk 0:04:49.2]} 14. Rxd6 {[%clk 0:03:59.7]} 14... cxd6 {[%clk 0:04:47.1]} 15.
Nd4 {[%clk 0:03:58.6]} 15... Rfe8 {[%clk 0:04:44.5]} 16. Nxc6 {[%clk 0:03:54.7]}
16... bxc6 {[%clk 0:04:44.4]} 17. Rd1 {[%clk 0:03:47.7]} 17... d5 {[%clk
0:04:42.5]} 18. c4 {[%clk 0:03:32.6]} 18... Rad8 {[%clk 0:04:40.6]} 19. cxd5
{[%clk 0:03:30.1]} 19... cxd5 {[%clk 0:04:39.5]} 20. Rb1 {[%clk 0:03:23.4]}
20... d4 {[%clk 0:04:38.4]} 21. Bd2 {[%clk 0:03:20.3]} 21... e3 {[%clk
0:04:36.7]} 22. fxe3 {[%clk 0:03:18.3]} 22... dxe3 {[%clk 0:04:36.6]} 23. Ba5
{[%clk 0:03:13.4]} 23... Rd2 {[%clk 0:04:34.9]} 24. Re1 {[%clk 0:02:55.6]} 24...
Rxc2 {[%clk 0:04:33.4]} 25. a3 {[%clk 0:02:50.7]} 25... f5 {[%clk 0:04:29.8]}
26. Bb4 {[%clk 0:02:49.4]} 26... f4 {[%clk 0:04:28.6]} 27. Bd6 {[%clk
0:02:42.3]} 27... g5 {[%clk 0:04:27.3]} 28. h3 {[%clk 0:02:33.9]} 28... h6
{[%clk 0:04:24.5]} 29. Bb4 {[%clk 0:02:24.7]} 29... Rec8 {[%clk 0:04:19.9]} 30.
Kh2 {[%clk 0:02:22.8]} 30... f3 {[%clk 0:04:18.3]} 31. Kg1 {[%clk 0:02:18.6]}
31... f2+ {[%clk 0:04:17.1]} 32. Kh2 {[%clk 0:02:11.8]} 32... fxe1=Q {[%clk
0:04:17]} 33. Bxe1 {[%clk 0:02:09]} 33... Re2 {[%clk 0:04:16.6]} 34. Bb4 {[%clk
0:02:04.5]} 34... Rcc2 {[%clk 0:04:15.9]} 35. Kg3 {[%clk 0:02:01]} 35... Rxg2+
{[%clk 0:04:15.8]} 36. Kf3 {[%clk 0:01:53.9]} 36... e2 {[%clk 0:04:13.7]} 37.
Kxg2 {[%clk 0:01:52]} 37... e1=Q+ {[%clk 0:04:11.8]} 38. Kf3 {[%clk 0:01:48.6]}
38... Rf2+ {[%clk 0:04:11.3]} 39. Kg4 {[%clk 0:01:47.2]} 39... Qe4+ {[%clk
0:04:10.4]} 40. Kh5 {[%clk 0:01:45.9]} 40... Qh4+ {[%clk 0:04:02.2]} 41. Kg6
{[%clk 0:01:42.3]} 41... Qxh3 {[%clk 0:04:01.8]} 42. Bc5 {[%clk 0:01:35.8]}
42... Qf5+ {[%clk 0:04:01.7]} 43. Kxh6 {[%clk 0:01:32.2]} 43... Rh2# {[%clk
0:04:00.3]} 0-1

[Event "Live Chess"]
[Site "Chess.com"]
[Date "2023.05.21"]
[Round "-"]
[White "Biranidun"]
[Black "Tushinskiy"]
[Result "0-1"]
[WhiteElo "2533"]
[BlackElo "2204"]
[TimeControl "300"]
[EndTime "4:15:07 PDT"]
[Termination "Tushinskiy won by resignation"]

1. e4 {[%clk 0:04:59.4]} 1... e5 {[%clk 0:04:59]} 2. Nf3 {[%clk 0:04:58.5]} 2...
d6 {[%clk 0:04:57.4]} 3. h3 {[%clk 0:04:57.5]} 3... Nf6 {[%clk 0:04:55.8]} 4.
Nc3 {[%clk 0:04:56.7]} 4... c6 {[%clk 0:04:54.5]} 5. d4 {[%clk 0:04:56]} 5...
Qc7 {[%clk 0:04:53.7]} 6. a4 {[%clk 0:04:55.1]} 6... Be7 {[%clk 0:04:52.8]} 7.
Bc4 {[%clk 0:04:54.8]} 7... O-O {[%clk 0:04:50.5]} 8. O-O {[%clk 0:04:54.4]}
8... Nbd7 {[%clk 0:04:47.7]} 9. Re1 {[%clk 0:04:53.7]} 9... a6 {[%clk
0:04:43.2]} 10. Be3 {[%clk 0:04:52.5]} 10... h6 {[%clk 0:04:37.5]} 11. Ba2
{[%clk 0:04:51.3]} 11... Re8 {[%clk 0:04:34.2]} 12. Nh4 {[%clk 0:04:50.2]} 12...
Nf8 {[%clk 0:04:32.2]} 13. Nf5 {[%clk 0:04:32.8]} 13... Bxf5 {[%clk 0:04:29.3]}
14. exf5 {[%clk 0:04:32.7]} 14... e4 {[%clk 0:04:27.8]} 15. Bf4 {[%clk
0:04:24.5]} 15... Qd7 {[%clk 0:04:25.2]} 16. Nxe4 {[%clk 0:04:21.9]} 16... Nxe4
{[%clk 0:04:20]} 17. Rxe4 {[%clk 0:04:21.8]} 17... d5 {[%clk 0:04:14.3]} 18. Re5
{[%clk 0:04:15.1]} 18... Bf6 {[%clk 0:04:12.8]} 19. Rxe8 {[%clk 0:03:52.9]}
19... Rxe8 {[%clk 0:04:12.7]} 20. g4 {[%clk 0:03:50.5]} 20... Re4 {[%clk
0:04:04.6]} 21. Be3 {[%clk 0:03:49.7]} 21... Nh7 {[%clk 0:03:55.9]} 22. c3
{[%clk 0:03:46.6]} 22... Bg5 {[%clk 0:03:50.5]} 23. Qf3 {[%clk 0:03:32.8]} 23...
Bxe3 {[%clk 0:03:45]} 24. fxe3 {[%clk 0:03:32.7]} 24... Qe7 {[%clk 0:03:34.6]}
25. Re1 {[%clk 0:03:27.9]} 25... Qh4 {[%clk 0:03:31.5]} 26. Re2 {[%clk
0:03:21.7]} 26... Ng5 {[%clk 0:03:29.1]} 27. Qh1 {[%clk 0:03:14.2]} 27... Nxh3+
{[%clk 0:03:26.1]} 28. Kf1 {[%clk 0:03:13.5]} 28... Rxg4 {[%clk 0:03:22.9]} 29.
Rh2 {[%clk 0:03:07.4]} 29... Rg3 {[%clk 0:03:21.6]} 30. Ke2 {[%clk 0:02:51.3]}
30... Qg4+ {[%clk 0:03:18.4]} 31. Kd2 {[%clk 0:02:50.5]} 31... Rg1 {[%clk
0:03:13]} 0-1

[Event "Live Chess"]
[Site "Chess.com"]
[Date "2023.05.21"]
[Round "-"]
[White "Crowded_House"]
[Black "raminguy"]
[Result "1-0"]
[WhiteElo "1650"]
[BlackElo "1955"]
[TimeControl "300"]
[EndTime "4:15:22 PDT"]
[Termination "Crowded_House won by checkmate"]

1. d4 {[%clk 0:04:59]} 1... d5 {[%clk 0:04:59.2]} 2. Bg5 {[%clk 0:04:58.3]} 2...
e6 {[%clk 0:04:59.1]} 3. Bxd8 {[%clk 0:04:56.4]} 3... Kxd8 {[%clk 0:04:54.1]} 4.
Nf3 {[%clk 0:04:50.9]} 4... c6 {[%clk 0:04:52.7]} 5. c3 {[%clk 0:04:50]} 5... f6
{[%clk 0:04:51.1]} 6. e3 {[%clk 0:04:48.9]} 6... Bd6 {[%clk 0:04:50.3]} 7. Bd3
{[%clk 0:04:47.5]} 7... Nd7 {[%clk 0:04:49.9]} 8. Qc2 {[%clk 0:04:45.8]} 8...
Ne7 {[%clk 0:04:49.8]} 9. Nbd2 {[%clk 0:04:40.2]} 9... b6 {[%clk 0:04:48.8]} 10.
O-O-O {[%clk 0:04:38.3]} 10... Bb7 {[%clk 0:04:48.2]} 11. Rde1 {[%clk
0:04:34.1]} 11... Rc8 {[%clk 0:04:46.6]} 12. e4 {[%clk 0:04:32.9]} 12... Nf8
{[%clk 0:04:41.4]} 13. exd5 {[%clk 0:04:31.5]} 13... cxd5 {[%clk 0:04:40.2]} 14.
Qa4 {[%clk 0:04:20.4]} 14... a6 {[%clk 0:04:37.3]} 15. Kb1 {[%clk 0:04:05.1]}
15... b5 {[%clk 0:04:35.8]} 16. Qd1 {[%clk 0:03:59.7]} 16... Nc6 {[%clk
0:04:29.8]} 17. Nb3 {[%clk 0:03:57.3]} 17... Ne7 {[%clk 0:04:26.3]} 18. Na5
{[%clk 0:03:54]} 18... Ba8 {[%clk 0:04:23.5]} 19. Qd2 {[%clk 0:03:44.2]} 19...
Kd7 {[%clk 0:04:22.7]} 20. Rc1 {[%clk 0:03:41.5]} 20... Kd8 {[%clk 0:04:21]} 21.
g3 {[%clk 0:03:37.2]} 21... Kd7 {[%clk 0:04:20.2]} 22. Ne1 {[%clk 0:03:33.1]}
22... Kd8 {[%clk 0:04:19.4]} 23. f4 {[%clk 0:03:32]} 23... f5 {[%clk 0:04:15.3]}
24. Nf3 {[%clk 0:03:27.6]} 24... Kd7 {[%clk 0:04:13.3]} 25. Ne5+ {[%clk
0:03:25.9]} 25... Kd8 {[%clk 0:04:12.4]} 26. Nf7+ {[%clk 0:03:23.9]} 26... Kc7
{[%clk 0:04:12.1]} 27. Nxh8 {[%clk 0:03:23.5]} 27... Nd7 {[%clk 0:04:09.7]} 28.
Nf7 {[%clk 0:03:19.6]} 28... Nb6 {[%clk 0:04:05.8]} 29. Nxd6 {[%clk 0:03:17.6]}
29... Kxd6 {[%clk 0:04:05.7]} 30. Qe2 {[%clk 0:03:05.8]} 30... Nd7 {[%clk
0:04:00.2]} 31. Nb3 {[%clk 0:03:02.2]} 31... Bc6 {[%clk 0:03:58.4]} 32. Nc5
{[%clk 0:03:01.2]} 32... Nf8 {[%clk 0:03:52.2]} 33. Qe5# {[%clk 0:02:57.7]} 1-0

[Event "Live Chess"]
[Site "Chess.com"]
[Date "2023.05.21"]
[Round "-"]
[White "AbilifyXL"]
[Black "Vitalii18a"]
[Result "1-0"]
[WhiteElo "1947"]
[BlackElo "1144"]
[TimeControl "300"]
[EndTime "4:15:33 PDT"]
[Termination "AbilifyXL won by resignation"]

1. d4 {[%clk 0:04:57.1]} 1... d5 {[%clk 0:04:57.1]} 2. c4 {[%clk 0:04:56.3]}
2... e6 {[%clk 0:04:55.7]} 3. Nc3 {[%clk 0:04:56.2]} 3... dxc4 {[%clk 0:04:52]}
4. Nf3 {[%clk 0:04:52.5]} 4... Bb4 {[%clk 0:04:49.2]} 5. Bg5 {[%clk 0:04:51]}
5... Nf6 {[%clk 0:04:47.1]} 6. e3 {[%clk 0:04:49.8]} 6... b5 {[%clk 0:04:43.5]}
7. Be2 {[%clk 0:04:45.6]} 7... a6 {[%clk 0:04:41.7]} 8. O-O {[%clk 0:04:44.5]}
8... Bb7 {[%clk 0:04:39.8]} 9. Rc1 {[%clk 0:04:39.7]} 9... O-O {[%clk
0:04:32.5]} 10. b3 {[%clk 0:04:26.4]} 10... cxb3 {[%clk 0:04:27.9]} 11. Qxb3
{[%clk 0:04:25.3]} 11... Bxc3 {[%clk 0:04:21]} 12. Qxc3 {[%clk 0:04:22.9]} 12...
h6 {[%clk 0:04:11.1]} 13. Bxf6 {[%clk 0:04:16.4]} 13... Qxf6 {[%clk 0:04:08.5]}
14. Qxc7 {[%clk 0:04:16.3]} 14... Bxf3 {[%clk 0:04:00.6]} 15. Bxf3 {[%clk
0:04:15.3]} 15... Qd8 {[%clk 0:03:16.4]} 16. Bxa8 {[%clk 0:04:11.2]} 16... Qxc7
{[%clk 0:03:14.4]} 17. Rxc7 {[%clk 0:04:08.7]} 1-0

[Event "Live Chess"]
[Site "Chess.com"]
[Date "2023.05.21"]
[Round "-"]
[White "diana21strabt"]
[Black "Brooms1989"]
[Result "1-0"]
[WhiteElo "1769"]
[BlackElo "1138"]
[TimeControl "300"]
[EndTime "4:15:38 PDT"]
[Termination "diana21strabt won by checkmate"]

1. e4 {[%clk 0:04:58.8]} 1... e5 {[%clk 0:04:56]} 2. Nf3 {[%clk 0:04:57.8]} 2...
Nc6 {[%clk 0:04:55.3]} 3. d4 {[%clk 0:04:57]} 3... exd4 {[%clk 0:04:54.1]} 4.
Bc4 {[%clk 0:04:56.2]} 4... Nf6 {[%clk 0:04:51.4]} 5. O-O {[%clk 0:04:55.2]}
5... Bc5 {[%clk 0:04:49.6]} 6. e5 {[%clk 0:04:53.6]} 6... d5 {[%clk 0:04:48.5]}
7. exf6 {[%clk 0:04:52.6]} 7... dxc4 {[%clk 0:04:47.2]} 8. fxg7 {[%clk
0:04:51.7]} 8... Rg8 {[%clk 0:04:46.3]} 9. Re1+ {[%clk 0:04:50.8]} 9... Be7
{[%clk 0:04:37]} 10. Bg5 {[%clk 0:04:47.3]} 10... Bg4 {[%clk 0:04:32.1]} 11.
Bxe7 {[%clk 0:04:45.5]} 11... Nxe7 {[%clk 0:04:30.7]} 12. h3 {[%clk 0:04:41.3]}
12... Bxf3 {[%clk 0:04:29]} 13. Qxf3 {[%clk 0:04:40.2]} 13... c6 {[%clk
0:04:25.4]} 14. Nd2 {[%clk 0:04:38.8]} 14... Rxg7 {[%clk 0:04:23.7]} 15. Nxc4
{[%clk 0:04:37.1]} 15... Qc7 {[%clk 0:04:08.5]} 16. Qf6 {[%clk 0:04:33.5]} 16...
Rg8 {[%clk 0:04:03.7]} 17. Nd6+ {[%clk 0:04:31.6]} 17... Kf8 {[%clk 0:03:58]}
18. Qxf7# {[%clk 0:04:30.3]} 1-0

[Event "Live Chess"]
[Site "Chess.com"]
[Date "2023.05.21"]
[Round "-"]
[White "viktorskliarov"]
[Black "Shepherds_Pie"]
[Result "1-0"]
[WhiteElo "2653"]
[BlackElo "1948"]
[TimeControl "300"]
[EndTime "4:15:41 PDT"]
[Termination "viktorskliarov won by resignation"]

1. e4 {[%clk 0:04:58]} 1... e6 {[%clk 0:04:56.7]} 2. d4 {[%clk 0:04:56.6]} 2...
d5 {[%clk 0:04:51.4]} 3. e5 {[%clk 0:04:55.8]} 3... c5 {[%clk 0:04:49.5]} 4. c3
{[%clk 0:04:55.2]} 4... Nc6 {[%clk 0:04:48.3]} 5. Nf3 {[%clk 0:04:54.6]} 5...
Qb6 {[%clk 0:04:46.9]} 6. a3 {[%clk 0:04:54.2]} 6... Nh6 {[%clk 0:04:44.9]} 7.
b4 {[%clk 0:04:52.7]} 7... cxd4 {[%clk 0:04:42.7]} 8. Bxh6 {[%clk 0:04:52.3]}
8... gxh6 {[%clk 0:04:40.7]} 9. cxd4 {[%clk 0:04:50.9]} 9... Bg7 {[%clk
0:04:37.7]} 10. b5 {[%clk 0:04:49.4]} 10... Na5 {[%clk 0:04:35.2]} 11. Nbd2
{[%clk 0:04:46.2]} 11... Bd7 {[%clk 0:04:29.3]} 12. Rb1 {[%clk 0:04:35.6]} 12...
O-O {[%clk 0:04:19.1]} 13. Bd3 {[%clk 0:04:32.6]} 13... Rac8 {[%clk 0:04:15.9]}
14. Qe2 {[%clk 0:04:28.9]} 14... Nc4 {[%clk 0:04:06.8]} 15. Nxc4 {[%clk
0:04:09.6]} 15... dxc4 {[%clk 0:04:05.4]} 16. Bxc4 {[%clk 0:04:08.8]} 16... a6
{[%clk 0:04:03.2]} 17. O-O {[%clk 0:04:00]} 17... axb5 {[%clk 0:04:01.7]} 18.
Bxb5 {[%clk 0:03:56.7]} 18... Bxb5 {[%clk 0:03:57]} 19. Qxb5 {[%clk 0:03:55.3]}
19... Qxb5 {[%clk 0:03:48]} 20. Rxb5 {[%clk 0:03:55.2]} 20... Rc3 {[%clk
0:03:46.1]} 21. Rxb7 {[%clk 0:03:27.2]} 21... Rxa3 {[%clk 0:03:42.8]} 22. Rc1
{[%clk 0:03:26.3]} 22... f6 {[%clk 0:03:36.5]} 23. h4 {[%clk 0:03:17.3]} 23...
fxe5 {[%clk 0:03:34.7]} 24. dxe5 {[%clk 0:03:16.1]} 24... Rf7 {[%clk 0:03:27.1]}
25. Rxf7 {[%clk 0:03:07.8]} 25... Kxf7 {[%clk 0:03:25.1]} 26. Rc7+ {[%clk
0:03:07.5]} 26... Kg8 {[%clk 0:03:21.3]} 27. Re7 {[%clk 0:02:50.9]} 27... Ra6
{[%clk 0:03:17.4]} 28. h5 {[%clk 0:02:46]} 28... Kf8 {[%clk 0:03:15.1]} 29. Rb7
{[%clk 0:02:44.2]} 29... Ra5 {[%clk 0:03:10.2]} 30. g4 {[%clk 0:02:06.3]} 30...
Bxe5 {[%clk 0:03:06.1]} 31. Nxe5 {[%clk 0:02:02.7]} 31... Rxe5 {[%clk
0:03:04.7]} 32. Rxh7 {[%clk 0:02:00.3]} 32... Rg5 {[%clk 0:02:57.1]} 33. f3
{[%clk 0:01:58.5]} 33... e5 {[%clk 0:02:54.1]} 34. Rxh6 {[%clk 0:01:55.6]} 34...
e4 {[%clk 0:02:51.4]} 35. Kf2 {[%clk 0:01:54.8]} 35... exf3 {[%clk 0:02:49.9]}
36. Kxf3 {[%clk 0:01:54.7]} 36... Kg7 {[%clk 0:02:48.3]} 37. Ra6 {[%clk
0:01:52.8]} 37... Rb5 {[%clk 0:02:45.8]} 38. Kf4 {[%clk 0:01:51.9]} 38... Rb4+
{[%clk 0:02:44.7]} 39. Kg5 {[%clk 0:01:50.8]} 39... Rb5+ {[%clk 0:02:43.8]} 40.
Kh4 {[%clk 0:01:49.6]} 40... Rb4 {[%clk 0:02:43]} 41. h6+ {[%clk 0:01:44.8]}
41... Kh7 {[%clk 0:02:41]} 42. Kh5 {[%clk 0:01:44.1]} 42... Rb1 {[%clk
0:02:38.9]} 43. Ra7+ {[%clk 0:01:42.3]} 1-0